[Event "AUT Bundesliga 2022-23"]
[Site "Jenbach"]
[Date "2022.11.06"]
[Round "4.18"]
[White "Rogic, Davor"]
[Black "Atlas, Dmitry"]
[Result "1/2-1/2"]
[ECO "C06"]
[WhiteElo "2452"]
[BlackElo "2238"]
[Annotator "ChessBase"]
[PlyCount "88"]
[EventDate "2022.11.03"]
[EventType "team-tourn"]
[EventCountry "AUT"]
[SourceTitle "playchess.com"]
[Source "ChessBase"]
[SourceQuality "1"]
[TimeControl "40/5400+30:1800+30"]

1. e4 {[%emt 0:00:09]} e6 {[%emt 0:00:07]} 2. d4 {[%emt 0:00:13]} d5 {[%emt 0:00:06]} 3. Nd2 {[%emt 0:00:16]} Nf6 {[%emt 0:00:07]} 4. e5 {[%emt 0:00:29]} Nfd7 {[%emt 0:00:07]} 5. Bd3 {[%emt 0:00:30]} c5 {[%emt 0:00:12]} 6. c3 {[%emt 0:00:16]} Nc6 {[%emt 0:00:15]} 7. Ne2 {[%emt 0:00:34]} cxd4 {[%emt 0:00:07]} 8. cxd4 {[%emt 0:00:14]} f6 {[%emt 0:00:07]} 9. exf6 {[%emt 0:00:40]} Nxf6 {[%emt 0:00:12]} 10. Nf3 {[%emt 0:00:57]} Bd6 {[%emt 0:00:22]} 11. O-O {[%emt 0:00:44]} Qc7 {[%emt 0:00:09]} 12. Bd2 {[%emt 0:00:37]} O-O {[%emt 0:04:32]} 13. Rc1 {[%emt 0:00:25]} Bd7 {[%emt 0:20:09]} 14. Ng3 {[%emt 0:01:27]} Rae8 {[%emt 0:04:19]} 15. Re1 {[%emt 0:01:00]} Qb8 {[%emt 0:06:36]} 16. Bc3 {[%emt 0:09:25]} e5 {[%emt 0:01:01]} 17. dxe5 {[%emt 0:05:09]} Nxe5 {[%emt 0:00:09]} 18. Nxe5 {[%emt 0:16:00]} Bxe5 {[%emt 0:00:06]} 19. Qb3 {[%emt 0:08:58]} Bxc3 {[%emt 0:04:32]} 20. Qxc3 {[%emt 0:04:37]} Qf4 {[%emt 0:02:20]} 21. Rxe8 {[%emt 0:13:12]} Rxe8 {[%emt 0:01:24]} 22. Ne2 {[%emt 0:03:34]} Qg5 {[%emt 0:03:43]} 23. Re1 {[%emt 0:05:07]} Bf5 {[%emt 0:18:12]} 24. h4 {[%emt 0:05:51]} Qg6 {[%emt 0:00:24]} 25. Nf4 {[%emt 0:04:24]} Rxe1+ {[%emt 0:00:33]} 26. Qxe1 {[%emt 0:00:06]} Qg4 {[%emt 0:00:12]} 27. g3 {[%emt 0:05:35]} Bxd3 {[%emt 0:04:41]} 28. Nxd3 {[%emt 0:00:02]} h6 {[%emt 0:04:00]} 29. Nf4 {[%emt 0:00:59]} Qf5 {[%emt 0:03:09]} 30. Qe6+ {[%emt 0:03:28]} Qxe6 {[%emt 0:01:01]} 31. Nxe6 {[%emt 0:00:02]} b6 {[%emt 0:02:10]} 32. f3 {[%emt 0:00:09]} Kf7 {[%emt 0:02:31]} 33. Nd4 {[%emt 0:00:21]} g5 {[%emt 0:02:30]} 34. hxg5 {[%emt 0:01:32]} hxg5 {[%emt 0:00:24]} 35. b4 {[%emt 0:02:35]} a5 {[%emt 0:02:15]} 36. bxa5 {[%emt 0:01:34]} bxa5 {[%emt 0:00:05]} 37. Nb3 {[%emt 0:05:09]} a4 {[%emt 0:00:21]} 38. Nc5 {[%emt 0:00:15]} a3 {[%emt 0:00:08]} 39. Kf2 {[%emt 0:00:50]} g4 {[%emt 0:01:54]} 40. fxg4 {[%emt 0:00:00]} Nxg4+ {[%emt 0:00:00]} 41. Ke2 {[%emt 0:03:14]} Ke7 {[%emt 0:07:50]} 42. Nd3 {[%emt 0:04:27]} Kd6 {[%emt 0:05:37]} 43. Ne1 {[%emt 0:02:51]} Nf6 {[%emt 0:03:35]} 44. Nc2 {[%emt 0:03:03]} Ke5 1/2-1/2

[Event "AUT Bundesliga 2022-23"]
[Site "Jenbach"]
[Date "2022.11.06"]
[Round "4.19"]
[White "Dragnev, Valentin"]
[Black "Ragger, Markus"]
[Result "1/2-1/2"]
[ECO "D86"]
[WhiteElo "2544"]
[BlackElo "2632"]
[Annotator "ChessBase"]
[PlyCount "81"]
[EventDate "2022.11.03"]
[EventType "team-tourn"]
[EventCountry "AUT"]
[SourceTitle "playchess.com"]
[Source "ChessBase"]
[SourceQuality "1"]
[TimeControl "40/5400+30:1800+30"]

1. d4 {[%emt 0:00:06]} Nf6 {[%emt 0:00:06]} 2. c4 {[%emt 0:00:04]} g6 {[%emt 0:00:05]} 3. Nc3 {[%emt 0:00:06]} d5 {[%emt 0:00:05]} 4. cxd5 {[%emt 0:00:09]} Nxd5 {[%emt 0:00:03]} 5. e4 {[%emt 0:00:13]} Nxc3 {[%emt 0:00:08]} 6. bxc3 {[%emt 0:00:05]} Bg7 {[%emt 0:00:06]} 7. Bc4 {[%emt 0:00:28]} c5 {[%emt 0:00:31]} 8. Ne2 {[%emt 0:00:08]} Nc6 {[%emt 0:00:08]} 9. Be3 {[%emt 0:00:06]} O-O {[%emt 0:00:06]} 10. O-O {[%emt 0:00:06]} e6 {[%emt 0:01:52]} 11. dxc5 {[%emt 0:02:35]} Qa5 {[%emt 0:00:21]} 12. f4 {[%emt 0:00:36]} Rd8 {[%emt 0:00:17]} 13. Qe1 {[%emt 0:05:13]} Qa4 {[%emt 0:06:32]} 14. Bb3 {[%emt 0:00:39]} Qxe4 {[%emt 0:00:16]} 15. Ng3 {[%emt 0:00:13]} Qd3 {[%emt 0:00:14]} 16. Rd1 {[%emt 0:01:34]} Qxc3 {[%emt 0:02:25]} 17. Rxd8+ {[%emt 0:00:13]} Nxd8 {[%emt 0:00:05]} 18. Qxc3 {[%emt 0:03:40]} Bxc3 {[%emt 0:00:08]} 19. Ne4 {[%emt 0:00:11]} Bg7 {[%emt 0:02:26]} 20. Rd1 {[%emt 0:04:39]} Nc6 {[%emt 0:00:25]} 21. h3 {[%emt 0:10:27]} Kf8 {[%emt 0:05:06]} 22. g4 {[%emt 0:05:29]} Ke7 {[%emt 0:01:54]} 23. Nd6 {[%emt 0:02:19]} Rb8 {[%emt 0:05:34]} 24. Bf2 {[%emt 0:01:01]} h6 {[%emt 0:04:00]} 25. Bh4+ {[%emt 0:03:32]} Bf6 {[%emt 0:01:23]} 26. Bf2 {[%emt 0:03:28]} Bg7 {[%emt 0:00:29]} 27. Ba4 {[%emt 0:05:41]} e5 {[%emt 0:07:18]} 28. Bh4+ {[%emt 0:01:33]} Bf6 {[%emt 0:03:06]} 29. Bxf6+ {[%emt 0:03:05]} Kxf6 {[%emt 0:00:48]} 30. Bxc6 {[%emt 0:00:16]} bxc6 {[%emt 0:00:04]} 31. Nxc8 {[%emt 0:00:59]} Rxc8 {[%emt 0:00:54]} 32. Rd6+ {[%emt 0:01:48]} Ke7 {[%emt 0:01:18]} 33. fxe5 {[%emt 0:00:06]} Rb8 {[%emt 0:01:51]} 34. Rxc6 {[%emt 0:01:39]} Rb1+ {[%emt 0:00:23]} 35. Kf2 {[%emt 0:00:12]} Rb2+ {[%emt 0:00:04]} 36. Kf3 {[%emt 0:01:46]} Rxa2 {[%emt 0:00:11]} 37. Ke4 {[%emt 0:00:45]} Re2+ {[%emt 0:02:09]} 38. Kd5 {[%emt 0:00:20]} Rd2+ {[%emt 0:00:04]} 39. Ke4 {[%emt 0:01:01]} Re2+ {[%emt 0:00:06]} 40. Kd5 {[%emt 0:00:00]} Rd2+ {[%emt 0:00:00]} 41. Ke4 {[%emt 0:00:25]} 1/2-1/2

[Event "AUT Bundesliga 2022-23"]
[Site "Jenbach"]
[Date "2022.11.06"]
[Round "4.20"]
[White "Naumann, Alexander"]
[Black "Banusz, Tamas"]
[Result "1/2-1/2"]
[ECO "D17"]
[WhiteElo "2513"]
[BlackElo "2622"]
[Annotator "ChessBase"]
[PlyCount "60"]
[EventDate "2022.11.03"]
[EventType "team-tourn"]
[EventCountry "AUT"]
[SourceTitle "playchess.com"]
[Source "ChessBase"]
[SourceQuality "1"]
[TimeControl "40/5400+30:1800+30"]

1. d4 {[%emt 0:00:04]} d5 {[%emt 0:00:08]} 2. c4 {[%emt 0:00:07]} c6 {[%emt 0:00:04]} 3. Nf3 {[%emt 0:00:10]} Nf6 {[%emt 0:00:06]} 4. Nc3 {[%emt 0:00:13]} dxc4 {[%emt 0:00:11]} 5. a4 {[%emt 0:00:08]} Bf5 {[%emt 0:00:07]} 6. Ne5 {[%emt 0:00:45]} Nbd7 {[%emt 0:00:12]} 7. Nxc4 {[%emt 0:00:09]} Nb6 {[%emt 0:00:12]} 8. Ne5 {[%emt 0:01:07]} a5 {[%emt 0:00:19]} 9. e3 {[%emt 0:01:16]} Nbd7 {[%emt 0:02:32]} 10. Nc4 {[%emt 0:00:51]} Qc7 {[%emt 0:01:02]} 11. Qf3 {[%emt 0:00:11]} Bg6 {[%emt 0:01:15]} 12. Qg3 {[%emt 0:08:10]} Qxg3 {[%emt 0:00:58]} 13. hxg3 {[%emt 0:00:06]} e6 {[%emt 0:09:40]} 14. Bd2 {[%emt 0:17:38]} Bb4 {[%emt 0:01:08]} 15. f3 {[%emt 0:10:51]} O-O {[%emt 0:04:52]} 16. e4 {[%emt 0:04:36]} Rfd8 {[%emt 0:15:08]} 17. Rd1 {[%emt 0:19:25]} Ne8 {[%emt 0:08:52]} 18. Ne2 {[%emt 0:05:40]} f6 {[%emt 0:04:13]} 19. Nf4 {[%emt 0:09:43]} Bf7 {[%emt 0:02:13]} 20. Nd3 {[%emt 0:03:26]} Bxd2+ {[%emt 0:01:36]} 21. Rxd2 {[%emt 0:00:16]} b5 {[%emt 0:05:42]} 22. axb5 {[%emt 0:00:17]} cxb5 {[%emt 0:00:04]} 23. Ne3 {[%emt 0:00:09]} Rac8 {[%emt 0:02:26]} 24. b4 {[%emt 0:01:58]} a4 {[%emt 0:02:15]} 25. Nc5 {[%emt 0:00:18]} Nxc5 {[%emt 0:01:59]} 26. dxc5 {[%emt 0:00:16]} Nc7 {[%emt 0:01:14]} 27. Nc2 {[%emt 0:00:37]} e5 {[%emt 0:01:37]} 28. Be2 {[%emt 0:02:16]} Be8 {[%emt 0:03:07]} 29. Kd1 {[%emt 0:01:04]} h6 {[%emt 0:00:58]} 30. Kc1 {[%emt 0:00:09]} Rxd2 {[%emt 0:00:05]} 1/2-1/2

[Event "AUT Bundesliga 2022-23"]
[Site "Jenbach"]
[Date "2022.11.06"]
[Round "4.21"]
[White "Blohberger, Felix"]
[Black "Roseneck, Jonas"]
[Result "1-0"]
[ECO "E48"]
[WhiteElo "2493"]
[BlackElo "2414"]
[Annotator "ChessBase"]
[PlyCount "67"]
[EventDate "2022.11.03"]
[EventType "team-tourn"]
[EventCountry "AUT"]
[SourceTitle "playchess.com"]
[Source "ChessBase"]
[SourceQuality "1"]
[TimeControl "40/5400+30:1800+30"]

1. d4 {[%emt 0:00:04]} Nf6 {[%emt 0:00:06]} 2. c4 {[%emt 0:00:03]} e6 {[%emt 0:00:06]} 3. Nc3 {[%emt 0:00:23]} Bb4 {[%emt 0:00:06]} 4. e3 {[%emt 0:00:03]} O-O {[%emt 0:00:06]} 5. Bd3 {[%emt 0:00:04]} d5 {[%emt 0:03:59]} 6. cxd5 {[%emt 0:00:08]} exd5 {[%emt 0:00:34]} 7. a3 {[%emt 0:00:06]} Bxc3+ {[%emt 0:05:16]} 8. bxc3 {[%emt 0:00:19]} c5 {[%emt 0:00:29]} 9. Ne2 {[%emt 0:00:08]} b6 {[%emt 0:01:07]} 10. O-O {[%emt 0:00:09]} Ba6 {[%emt 0:00:04]} 11. f3 {[%emt 0:00:24]} Bxd3 {[%emt 0:01:32]} 12. Qxd3 {[%emt 0:00:07]} Re8 {[%emt 0:01:56]} 13. Ng3 {[%emt 0:00:34]} Nc6 {[%emt 0:01:51]} 14. Bb2 {[%emt 0:00:05]} h5 {[%emt 0:00:04]} 15. Rae1 {[%emt 0:00:17]} g6 {[%emt 0:13:46]} 16. e4 {[%emt 0:04:36]} h4 {[%emt 0:07:21]} 17. Nh1 {[%emt 0:00:30]} Nh5 {[%emt 0:05:03]} 18. e5 {[%emt 0:10:02]} cxd4 {[%emt 0:06:55]} 19. cxd4 {[%emt 0:00:29]} Qg5 {[%emt 0:08:09]} 20. f4 {[%emt 0:08:57]} Qf5 {[%emt 0:03:16]} 21. Qf3 {[%emt 0:03:03]} Qd7 {[%emt 0:20:25]} 22. f5 {[%emt 0:11:38]} Qxf5 {[%emt 0:02:38]} 23. Qxf5 {[%emt 0:01:15]} gxf5 {[%emt 0:00:02]} 24. Rxf5 {[%emt 0:00:12]} Ng7 {[%emt 0:00:08]} 25. Rf4 {[%emt 0:01:05]} Rac8 {[%emt 0:02:16]} 26. Nf2 {[%emt 0:02:09]} Ne7 {[%emt 0:02:07]} 27. Ng4 {[%emt 0:06:49]} Nh5 {[%emt 0:01:09]} 28. Rf2 {[%emt 0:00:26]} Rf8 {[%emt 0:10:05]} 29. Ref1 {[%emt 0:02:46]} Rc6 {[%emt 0:00:53]} 30. Bc1 {[%emt 0:01:31]} Kg7 {[%emt 0:00:20]} 31. Bg5 {[%emt 0:00:40]} Re6 {[%emt 0:00:44]} 32. Bxh4 {[%emt 0:01:14]} Ng8 {[%emt 0:00:46]} 33. Rf5 {[%emt 0:00:26]} Nh6 {[%emt 0:01:23]} 34. Nxh6 {[%emt 0:01:14]} 1-0

[Event "AUT Bundesliga 2022-23"]
[Site "Jenbach"]
[Date "2022.11.06"]
[Round "4.22"]
[White "Bauer, Sebastian"]
[Black "Peyrer, Konstantin"]
[Result "1/2-1/2"]
[ECO "C50"]
[WhiteElo "2291"]
[BlackElo "2402"]
[Annotator "ChessBase"]
[PlyCount "46"]
[EventDate "2022.11.03"]
[EventType "team-tourn"]
[EventCountry "AUT"]
[SourceTitle "playchess.com"]
[Source "ChessBase"]
[SourceQuality "1"]
[TimeControl "40/5400+30:1800+30"]

1. e4 {[%emt 0:00:30]} e5 {[%emt 0:00:08]} 2. Nf3 {[%emt 0:00:00]} Nc6 {[%emt 0:00:08]} 3. Bc4 {[%emt 0:00:00]} d6 {[%emt 0:00:16]} 4. O-O {[%emt 0:01:51]} Be7 {[%emt 0:00:26]} 5. c3 {[%emt 0:03:36]} Nf6 {[%emt 0:00:47]} 6. d3 {[%emt 0:03:56]} O-O {[%emt 0:00:12]} 7. Re1 {[%emt 0:04:14]} Na5 {[%emt 0:03:13]} 8. Bb5 {[%emt 0:01:04]} a6 {[%emt 0:00:36]} 9. Ba4 {[%emt 0:00:07]} b5 {[%emt 0:00:06]} 10. Bc2 {[%emt 0:00:07]} c5 {[%emt 0:00:23]} 11. d4 {[%emt 0:09:18]} Qc7 {[%emt 0:09:29]} 12. d5 {[%emt 0:00:19]} g6 {[%emt 0:02:22]} 13. Nbd2 {[%emt 0:01:31]} Nh5 {[%emt 0:01:49]} 14. Nf1 {[%emt 0:02:29]} f6 {[%emt 0:05:51]} 15. Ng3 {[%emt 0:14:05]} Nf4 {[%emt 0:02:05]} 16. b4 {[%emt 0:06:03]} Nc4 {[%emt 0:01:07]} 17. a4 {[%emt 0:03:34]} Bd7 {[%emt 0:12:20]} 18. a5 {[%emt 0:01:31]} Rf7 {[%emt 0:01:47]} 19. Ra2 {[%emt 0:07:54]} Kh8 {[%emt 0:03:21]} 20. Ne2 {[%emt 0:08:24]} Nh5 {[%emt 0:05:23]} 21. Ng3 {[%emt 0:01:48]} Nf4 {[%emt 0:05:02]} 22. Ne2 {[%emt 0:00:29]} Nh5 {[%emt 0:00:47]} 23. Ng3 {[%emt 0:00:14]} Nf4 1/2-1/2

[Event "AUT Bundesliga 2022-23"]
[Site "Jenbach"]
[Date "2022.11.06"]
[Round "4.23"]
[White "Steindl, Johannes"]
[Black "Handler, Lukas"]
[Result "1/2-1/2"]
[ECO "C11"]
[WhiteElo "2315"]
[BlackElo "2442"]
[Annotator "ChessBase"]
[PlyCount "67"]
[EventDate "2022.11.03"]
[EventType "team-tourn"]
[EventCountry "AUT"]
[SourceTitle "playchess.com"]
[Source "ChessBase"]
[SourceQuality "1"]
[TimeControl "40/5400+30:1800+30"]

1. e4 {[%emt 0:00:03]} e6 {[%emt 0:00:04]} 2. d4 {[%emt 0:00:03]} d5 {[%emt 0:00:04]} 3. Nc3 {[%emt 0:00:04]} Nf6 {[%emt 0:00:06]} 4. e5 {[%emt 0:00:02]} Nfd7 {[%emt 0:00:07]} 5. f4 {[%emt 0:00:04]} c5 {[%emt 0:00:07]} 6. Nf3 {[%emt 0:00:04]} Nc6 {[%emt 0:00:09]} 7. Be3 {[%emt 0:00:03]} cxd4 {[%emt 0:00:08]} 8. Nxd4 {[%emt 0:00:04]} Qb6 {[%emt 0:00:06]} 9. Qd2 {[%emt 0:00:57]} Qxb2 {[%emt 0:00:11]} 10. Rb1 {[%emt 0:00:04]} Qa3 {[%emt 0:00:07]} 11. Bb5 {[%emt 0:00:03]} Nxd4 {[%emt 0:00:27]} 12. Bxd4 {[%emt 0:01:43]} a6 {[%emt 0:00:30]} 13. Bxd7+ {[%emt 0:03:04]} Bxd7 {[%emt 0:00:07]} 14. Rb3 {[%emt 0:00:04]} Qe7 {[%emt 0:00:07]} 15. Rxb7 {[%emt 0:00:03]} Rc8 {[%emt 0:01:54]} 16. Rf1 {[%emt 0:48:51]} Rc4 {[%emt 0:29:04]} 17. Na4 {[%emt 0:06:06]} Qd8 {[%emt 0:21:03]} 18. Nb6 {[%emt 0:11:48]} Rc7 {[%emt 0:04:14]} 19. Rxc7 {[%emt 0:01:05]} Qxc7 {[%emt 0:00:03]} 20. Rf3 {[%emt 0:01:14]} Be7 {[%emt 0:02:34]} 21. f5 {[%emt 0:00:15]} Bb5 {[%emt 0:06:37]} 22. Kd1 {[%emt 0:08:34]} Bc4 {[%emt 0:11:33]} 23. fxe6 {[%emt 0:10:26]} fxe6 {[%emt 0:00:08]} 24. Qf4 {[%emt 0:00:07]} Rf8 {[%emt 0:05:54]} 25. Qg4 {[%emt 0:00:03]} Rxf3 {[%emt 0:00:57]} 26. gxf3 {[%emt 0:00:16]} Kf7 {[%emt 0:04:30]} 27. Qh5+ {[%emt 0:00:10]} Kf8 {[%emt 0:00:27]} 28. Qxh7 {[%emt 0:00:05]} Bxa2 {[%emt 0:00:55]} 29. h4 {[%emt 0:02:45]} Qc6 {[%emt 0:01:19]} 30. Nc8 {[%emt 0:05:26]} Qc4 {[%emt 0:05:18]} 31. Qh8+ {[%emt 0:00:06]} Kf7 {[%emt 0:00:05]} 32. Qh5+ {[%emt 0:00:03]} Kf8 {[%emt 0:00:28]} 33. Qh8+ {[%emt 0:00:04]} Kf7 {[%emt 0:00:05]} 34. Qh5+ {[%emt 0:00:18]} 1/2-1/2

[Event "AUT Bundesliga 2022-23"]
[Site "Jenbach"]
[Date "2022.11.06"]
[Round "4.24"]
[White "Halvax, Georg"]
[Black "Huber, Benedikt"]
[Result "1/2-1/2"]
[ECO "D37"]
[WhiteElo "2432"]
[BlackElo "2299"]
[Annotator "ChessBase"]
[PlyCount "50"]
[EventDate "2022.11.03"]
[EventType "team-tourn"]
[EventCountry "AUT"]
[SourceTitle "playchess.com"]
[Source "ChessBase"]
[SourceQuality "1"]
[TimeControl "40/5400+30:1800+30"]

1. d4 {[%emt 0:00:05]} d5 {[%emt 0:00:11]} 2. c4 {[%emt 0:00:09]} e6 {[%emt 0:00:05]} 3. Nf3 {[%emt 0:00:09]} Nf6 {[%emt 0:00:07]} 4. Nc3 {[%emt 0:00:07]} a6 {[%emt 0:00:06]} 5. cxd5 {[%emt 0:00:16]} exd5 {[%emt 0:00:07]} 6. Bg5 {[%emt 0:00:10]} Be6 {[%emt 0:00:12]} 7. Qb3 {[%emt 0:00:07]} Nbd7 {[%emt 0:02:34]} 8. Qxb7 {[%emt 0:17:57]} Rb8 {[%emt 0:09:15]} 9. Qxa6 {[%emt 0:00:13]} Rxb2 {[%emt 0:00:07]} 10. Bc1 {[%emt 0:02:52]} Rb6 {[%emt 0:06:09]} 11. Qd3 {[%emt 0:00:26]} Bb4 {[%emt 0:05:12]} 12. Bd2 {[%emt 0:01:55]} g6 {[%emt 0:02:24]} 13. Nd1 {[%emt 0:06:45]} Bf5 {[%emt 0:11:58]} 14. Qe3+ {[%emt 0:01:06]} Be7 {[%emt 0:00:06]} 15. g3 {[%emt 0:08:23]} O-O {[%emt 0:06:43]} 16. Bg2 {[%emt 0:03:04]} Re8 {[%emt 0:03:23]} 17. Qc3 {[%emt 0:00:06]} Ne4 {[%emt 0:02:39]} 18. Qc1 {[%emt 0:00:03]} Qa8 {[%emt 0:01:17]} 19. Ne3 {[%emt 0:05:01]} Ba3 {[%emt 0:12:05]} 20. Qxc7 {[%emt 0:02:40]} Rc8 {[%emt 0:18:18]} 21. Qf4 {[%emt 0:00:13]} Bd6 {[%emt 0:00:35]} 22. Qh6 {[%emt 0:00:14]} Bf8 {[%emt 0:00:13]} 23. Qf4 {[%emt 0:00:05]} Bd6 {[%emt 0:00:06]} 24. Qh6 {[%emt 0:00:05]} Bf8 {[%emt 0:00:11]} 25. Qf4 {[%emt 0:00:04]} Bd6 1/2-1/2

[Event "AUT Bundesliga 2022-23"]
[Site "Jenbach"]
[Date "2022.11.06"]
[Round "4.25"]
[White "Baldauf, Marco"]
[Black "Georgiadis, Nico"]
[Result "1/2-1/2"]
[ECO "E32"]
[WhiteElo "2501"]
[BlackElo "2577"]
[Annotator "ChessBase"]
[PlyCount "96"]
[EventDate "2022.11.03"]
[EventType "team-tourn"]
[EventCountry "AUT"]
[SourceTitle "playchess.com"]
[Source "ChessBase"]
[SourceQuality "1"]
[TimeControl "40/5400+30:1800+30"]

1. d4 {[%emt 0:00:03]} Nf6 {[%emt 0:00:08]} 2. c4 {[%emt 0:00:06]} e6 {[%emt 0:00:06]} 3. Nc3 {[%emt 0:00:38]} Bb4 {[%emt 0:00:07]} 4. Qc2 {[%emt 0:00:03]} O-O {[%emt 0:00:26]} 5. a3 {[%emt 0:00:43]} Bxc3+ {[%emt 0:00:11]} 6. Qxc3 {[%emt 0:00:04]} b6 {[%emt 0:00:24]} 7. Bg5 {[%emt 0:00:07]} h6 {[%emt 0:02:19]} 8. Bh4 {[%emt 0:00:13]} Bb7 {[%emt 0:00:06]} 9. e3 {[%emt 0:00:55]} d6 {[%emt 0:01:32]} 10. Ne2 {[%emt 0:01:24]} Nbd7 {[%emt 0:00:48]} 11. Qc2 {[%emt 0:01:30]} c5 {[%emt 0:03:44]} 12. dxc5 {[%emt 0:13:51]} bxc5 {[%emt 0:16:07]} 13. f3 {[%emt 0:20:27]} d5 {[%emt 0:04:36]} 14. Bg3 {[%emt 0:05:14]} Qe7 {[%emt 0:06:54]} 15. Rc1 {[%emt 0:03:52]} e5 {[%emt 0:10:33]} 16. cxd5 {[%emt 0:03:11]} e4 {[%emt 0:00:08]} 17. d6 {[%emt 0:01:42]} Qe8 {[%emt 0:12:19]} 18. f4 {[%emt 0:01:41]} Qe6 {[%emt 0:00:10]} 19. Nc3 {[%emt 0:01:48]} Qxd6 {[%emt 0:04:13]} 20. Be2 {[%emt 0:00:15]} Ba6 {[%emt 0:07:09]} 21. f5 {[%emt 0:08:23]} Qb6 {[%emt 0:06:23]} 22. Rd1 {[%emt 0:01:02]} Bd3 {[%emt 0:04:45]} 23. Bxd3 {[%emt 0:03:07]} exd3 {[%emt 0:00:05]} 24. Rxd3 {[%emt 0:01:00]} c4 {[%emt 0:01:06]} 25. Rd4 {[%emt 0:01:44]} Rfe8 {[%emt 0:00:17]} 26. O-O {[%emt 0:04:56]} Rxe3 {[%emt 0:01:34]} 27. Rfd1 {[%emt 0:00:15]} Rae8 {[%emt 0:05:20]} 28. Bf2 {[%emt 0:08:08]} Ng4 {[%emt 0:00:11]} 29. Bxe3 {[%emt 0:00:45]} Nxe3 {[%emt 0:07:32]} 30. Qf2 {[%emt 0:01:19]} Nxd1 {[%emt 0:00:36]} 31. Rxd1 {[%emt 0:00:06]} Qxf2+ {[%emt 0:00:09]} 32. Kxf2 {[%emt 0:00:03]} Ne5 {[%emt 0:00:31]} 33. Rd2 {[%emt 0:04:15]} Nd3+ {[%emt 0:03:01]} 34. Kf3 {[%emt 0:00:05]} Re1 {[%emt 0:00:11]} 35. Re2 {[%emt 0:06:27]} Rf1+ {[%emt 0:00:33]} 36. Ke4 {[%emt 0:00:11]} h5 {[%emt 0:01:25]} 37. g3 {[%emt 0:03:52]} h4 {[%emt 0:00:38]} 38. Kd4 {[%emt 0:01:47]} Rxf5 {[%emt 0:01:24]} 39. Kxc4 {[%emt 0:02:19]} Ne5+ {[%emt 0:00:05]} 40. Kb5 {[%emt 0:00:00]} h3 {[%emt 0:00:00]} 41. Ka6 {[%emt 0:02:43]} Nc6 {[%emt 0:08:12]} 42. b4 {[%emt 0:06:02]} g5 {[%emt 0:05:24]} 43. Rd2 {[%emt 0:08:08]} Rf3 {[%emt 0:09:51]} 44. Nb5 {[%emt 0:00:16]} Rb3 {[%emt 0:02:28]} 45. Kb7 {[%emt 0:06:43]} Ne5 {[%emt 0:04:16]} 46. Kxa7 {[%emt 0:00:57]} g4 {[%emt 0:01:07]} 47. Ra2 {[%emt 0:08:42]} Nf3 {[%emt 0:00:10]} 48. Nd6 {[%emt 0:01:41]} Nxh2 {[%emt 0:00:05]} 1/2-1/2

[Event "AUT Bundesliga 2022-23"]
[Site "Jenbach"]
[Date "2022.11.06"]
[Round "4.26"]
[White "Koelle, Tobias"]
[Black "Prusikin, Michael"]
[Result "1-0"]
[ECO "D37"]
[WhiteElo "2439"]
[BlackElo "2517"]
[Annotator "ChessBase"]
[PlyCount "81"]
[EventDate "2022.11.03"]
[EventType "team-tourn"]
[EventCountry "AUT"]
[SourceTitle "playchess.com"]
[Source "ChessBase"]
[SourceQuality "1"]
[TimeControl "40/5400+30:1800+30"]

1. d4 {[%emt 0:00:03]} d5 {[%emt 0:00:04]} 2. c4 {[%emt 0:00:04]} e6 {[%emt 0:00:03]} 3. Nf3 {[%emt 0:00:04]} Nf6 {[%emt 0:00:07]} 4. Nc3 {[%emt 0:00:05]} Nbd7 {[%emt 0:00:09]} 5. Bf4 {[%emt 0:00:35]} dxc4 {[%emt 0:00:09]} 6. e3 {[%emt 0:00:08]} Bd6 {[%emt 0:00:06]} 7. Bxd6 {[%emt 0:00:58]} cxd6 {[%emt 0:00:04]} 8. Bxc4 {[%emt 0:00:05]} O-O {[%emt 0:00:36]} 9. O-O {[%emt 0:00:14]} Nb6 {[%emt 0:03:42]} 10. Bb3 {[%emt 0:05:52]} Bd7 {[%emt 0:02:36]} 11. d5 {[%emt 0:07:48]} e5 {[%emt 0:01:20]} 12. Rc1 {[%emt 0:11:28]} Bg4 {[%emt 0:05:38]} 13. h3 {[%emt 0:02:56]} Bh5 {[%emt 0:02:07]} 14. e4 {[%emt 0:03:32]} Bxf3 {[%emt 0:02:48]} 15. Qxf3 {[%emt 0:00:48]} Nbd7 {[%emt 0:04:52]} 16. Rfe1 {[%emt 0:13:57]} Nc5 {[%emt 0:04:58]} 17. Na4 {[%emt 0:04:13]} Nfd7 {[%emt 0:06:49]} 18. Nxc5 {[%emt 0:04:39]} Nxc5 {[%emt 0:00:04]} 19. Bc4 {[%emt 0:02:07]} Qb6 {[%emt 0:01:01]} 20. Qe2 {[%emt 0:08:49]} g6 {[%emt 0:10:02]} 21. Qd2 {[%emt 0:02:57]} a5 {[%emt 0:01:41]} 22. Re3 {[%emt 0:04:48]} Kh8 {[%emt 0:04:20]} 23. Kh2 {[%emt 0:04:58]} f5 {[%emt 0:05:18]} 24. exf5 {[%emt 0:05:12]} gxf5 {[%emt 0:05:38]} 25. b3 {[%emt 0:02:59]} f4 {[%emt 0:04:46]} 26. Ree1 {[%emt 0:00:10]} Rf6 {[%emt 0:01:03]} 27. a3 {[%emt 0:01:04]} Rg8 {[%emt 0:14:53]} 28. b4 {[%emt 0:00:15]} axb4 {[%emt 0:00:07]} 29. axb4 {[%emt 0:00:01]} Nd7 {[%emt 0:00:13]} 30. Bf1 {[%emt 0:03:35]} Rfg6 {[%emt 0:01:38]} 31. Rc4 {[%emt 0:01:34]} Nf6 {[%emt 0:00:31]} 32. Rec1 {[%emt 0:00:41]} R6g7 {[%emt 0:08:33]} 33. Rc8 {[%emt 0:02:54]} Ne4 {[%emt 0:03:06]} 34. Qc2 {[%emt 0:00:22]} Nxf2 {[%emt 0:01:51]} 35. Qf5 {[%emt 0:00:06]} h6 {[%emt 0:01:42]} 36. Rxg8+ {[%emt 0:01:45]} Rxg8 {[%emt 0:00:04]} 37. Qf6+ {[%emt 0:00:10]} Kh7 {[%emt 0:00:16]} 38. Qf7+ {[%emt 0:00:20]} Rg7 {[%emt 0:00:27]} 39. Qf5+ {[%emt 0:00:07]} Rg6 {[%emt 0:01:20]} 40. Rc8 {[%emt 0:00:00]} f3 {[%emt 0:00:00]} 41. Qxf3 {[%emt 0:12:13]} 1-0